[Event "Early-Titled-Tuesday-Blitz-March-26-2024"]
[Site "Chess.com"]
[Date "2024.03.26"]
[Round "8"]
[White "only_strong_moves"]
[Black "Kacparov"]
[Result "0-1"]
[WhiteElo "2706"]
[BlackElo "2897"]
[TimeControl "180+1"]
[EndTime "9:25:10 PDT"]
[Termination "Kacparov won by resignation"]

1. Nc3 {[%clk 0:03:00.9]} 1... e5 {[%clk 0:02:59]} 2. Nf3 {[%clk 0:02:59.4]}
2... Nc6 {[%clk 0:02:58.6]} 3. d4 {[%clk 0:03:00]} 3... exd4 {[%clk 0:02:58]} 4.
Nxd4 {[%clk 0:03:00.9]} 4... Bc5 {[%clk 0:02:55.2]} 5. Nf5 {[%clk 0:03:00.8]}
5... Bf8 {[%clk 0:02:47.2]} 6. g3 {[%clk 0:02:58.2]} 6... d6 {[%clk 0:02:38.9]}
7. Ne3 {[%clk 0:02:56.4]} 7... Be6 {[%clk 0:02:36.8]} 8. Bg2 {[%clk 0:02:56.1]}
8... Nf6 {[%clk 0:02:35.9]} 9. O-O {[%clk 0:02:54]} 9... Qd7 {[%clk 0:02:33.7]}
10. Ned5 {[%clk 0:02:50.3]} 10... Be7 {[%clk 0:02:29.8]} 11. a3 {[%clk 0:02:31]}
11... O-O {[%clk 0:02:27.7]} 12. Nxe7+ {[%clk 0:02:28.9]} 12... Qxe7 {[%clk
0:02:25.6]} 13. Bg5 {[%clk 0:02:28.4]} 13... h6 {[%clk 0:02:25.7]} 14. Bf4
{[%clk 0:02:13.7]} 14... Rad8 {[%clk 0:02:23.3]} 15. e4 {[%clk 0:02:12.6]} 15...
Ne5 {[%clk 0:02:09.9]} 16. Bc1 {[%clk 0:02:03.8]} 16... Bc4 {[%clk 0:01:59.2]}
17. Re1 {[%clk 0:02:02.4]} 17... c6 {[%clk 0:01:57.8]} 18. f4 {[%clk 0:02:00.9]}
18... Ng6 {[%clk 0:01:58]} 19. Be3 {[%clk 0:02:00]} 19... Qc7 {[%clk 0:01:50.3]}
20. b3 {[%clk 0:01:54.9]} 20... Ba6 {[%clk 0:01:50.2]} 21. Qf3 {[%clk
0:01:50.9]} 21... Rfe8 {[%clk 0:01:49.6]} 22. Rad1 {[%clk 0:01:50.3]} 22... b6
{[%clk 0:01:46.3]} 23. Bd4 {[%clk 0:01:41.7]} 23... Nd7 {[%clk 0:01:37]} 24. h4
{[%clk 0:01:41.5]} 24... Bc8 {[%clk 0:01:31.6]} 25. h5 {[%clk 0:01:27.4]} 25...
Ngf8 {[%clk 0:01:31.8]} 26. g4 {[%clk 0:01:17]} 26... Nh7 {[%clk 0:01:28.8]} 27.
Bf2 {[%clk 0:01:16.5]} 27... Ndf6 {[%clk 0:01:24.3]} 28. Bh3 {[%clk 0:01:16.3]}
28... b5 {[%clk 0:01:10.4]} 29. Kg2 {[%clk 0:01:02.2]} 29... a5 {[%clk
0:01:10.5]} 30. Bg3 {[%clk 0:01:01.9]} 30... b4 {[%clk 0:01:10.4]} 31. axb4
{[%clk 0:01:01.4]} 31... axb4 {[%clk 0:01:11.3]} 32. Nb1 {[%clk 0:00:56.7]}
32... c5 {[%clk 0:01:11.7]} 33. Kh2 {[%clk 0:00:51.6]} 33... d5 {[%clk
0:01:06.7]} 34. exd5 {[%clk 0:00:43.2]} 34... Rxe1 {[%clk 0:01:03.4]} 35. Rxe1
{[%clk 0:00:44.1]} 35... Bb7 {[%clk 0:00:58.5]} 36. g5 {[%clk 0:00:09.3]} 36...
Nxd5 {[%clk 0:00:57.4]} 37. Qg4 {[%clk 0:00:06.4]} 37... Qc6 {[%clk 0:00:43.5]}
38. Bg2 {[%clk 0:00:05.7]} 38... Ne3 {[%clk 0:00:36.8]} 39. Bxc6 {[%clk
0:00:04.6]} 39... Nxg4+ {[%clk 0:00:36.9]} 40. Kh3 {[%clk 0:00:05.2]} 40... Bxc6
{[%clk 0:00:31.8]} 41. Kxg4 {[%clk 0:00:05.8]} 41... f5+ {[%clk 0:00:25.2]} 42.
Kh4 {[%clk 0:00:05.4]} 42... hxg5+ {[%clk 0:00:23.9]} 43. fxg5 {[%clk
0:00:06.3]} 43... Rd4+ {[%clk 0:00:24.1]} 44. Bf4 {[%clk 0:00:05.5]} 44... Rxf4+
{[%clk 0:00:23.9]} 45. Kg3 {[%clk 0:00:05.6]} 45... Rg4+ {[%clk 0:00:23.8]} 46.
Kh3 {[%clk 0:00:06.5]} 46... Nxg5+ {[%clk 0:00:24.1]} 0-1

[Event "Early-Titled-Tuesday-Blitz-March-26-2024"]
[Site "Chess.com"]
[Date "2024.03.26"]
[Round "8"]
[White "Tol_Tol"]
[Black "FlemingA"]
[Result "0-1"]
[WhiteElo "2341"]
[BlackElo "2443"]
[TimeControl "180+1"]
[EndTime "9:25:16 PDT"]
[Termination "FlemingA won on time"]

1. d4 {[%clk 0:03:00.7]} 1... d6 {[%clk 0:02:55.2]} 2. c4 {[%clk 0:03:00.7]}
2... g6 {[%clk 0:02:54]} 3. Nc3 {[%clk 0:02:59.7]} 3... Bg7 {[%clk 0:02:54.4]}
4. e4 {[%clk 0:02:58.1]} 4... c5 {[%clk 0:02:51.9]} 5. Be3 {[%clk 0:02:58.8]}
5... Nc6 {[%clk 0:02:50.1]} 6. d5 {[%clk 0:02:57.5]} 6... Nd4 {[%clk 0:02:49.4]}
7. Nge2 {[%clk 0:02:57.3]} 7... Nxe2 {[%clk 0:02:39.6]} 8. Bxe2 {[%clk
0:02:57.2]} 8... Nf6 {[%clk 0:02:40.5]} 9. f3 {[%clk 0:02:53.3]} 9... O-O {[%clk
0:02:40.4]} 10. Qd2 {[%clk 0:02:53.3]} 10... e6 {[%clk 0:02:40.9]} 11. O-O
{[%clk 0:02:51.8]} 11... exd5 {[%clk 0:02:40.8]} 12. cxd5 {[%clk 0:02:51.3]}
12... Re8 {[%clk 0:02:41.2]} 13. Bh6 {[%clk 0:02:42.9]} 13... Bh8 {[%clk
0:02:41]} 14. Bg5 {[%clk 0:02:39.7]} 14... a6 {[%clk 0:02:40.5]} 15. a4 {[%clk
0:02:39.5]} 15... Qa5 {[%clk 0:02:39.3]} 16. Kh1 {[%clk 0:02:32.9]} 16... Nd7
{[%clk 0:02:38]} 17. f4 {[%clk 0:02:09.7]} 17... Qb4 {[%clk 0:02:21.5]} 18. a5
{[%clk 0:02:00.8]} 18... Qd4 {[%clk 0:02:15.9]} 19. f5 {[%clk 0:01:44.6]} 19...
Qxd2 {[%clk 0:02:08.4]} 20. Bxd2 {[%clk 0:01:44.4]} 20... Ne5 {[%clk 0:02:09.3]}
21. fxg6 {[%clk 0:01:39.5]} 21... hxg6 {[%clk 0:02:08.5]} 22. Na4 {[%clk
0:01:39.5]} 22... Bg4 {[%clk 0:02:03.4]} 23. Bxg4 {[%clk 0:01:38.3]} 23... Nxg4
{[%clk 0:02:04.3]} 24. Nb6 {[%clk 0:01:38.4]} 24... Rad8 {[%clk 0:02:04.2]} 25.
Rf4 {[%clk 0:01:29.4]} 25... Ne5 {[%clk 0:02:00]} 26. Bc3 {[%clk 0:01:27.5]}
26... Nd3 {[%clk 0:01:37.8]} 27. Rf3 {[%clk 0:01:17.7]} 27... Bxc3 {[%clk
0:01:33.9]} 28. bxc3 {[%clk 0:01:17.5]} 28... Ne5 {[%clk 0:01:34.4]} 29. Rf6
{[%clk 0:01:08.8]} 29... Ng4 {[%clk 0:01:18]} 30. Rf4 {[%clk 0:01:08]} 30...
Rxe4 {[%clk 0:01:17.8]} 31. Rxe4 {[%clk 0:01:03.2]} 31... Nf2+ {[%clk
0:01:17.8]} 32. Kg1 {[%clk 0:01:02.9]} 32... Nxe4 {[%clk 0:01:18.7]} 33. c4
{[%clk 0:00:58.8]} 33... Nd2 {[%clk 0:01:08.8]} 34. Ra2 {[%clk 0:00:53]} 34...
Nb3 {[%clk 0:01:00.2]} 35. Kf2 {[%clk 0:00:35.2]} 35... Re8 {[%clk 0:00:58.3]}
36. Nd7 {[%clk 0:00:34]} 36... Re7 {[%clk 0:00:47]} 37. Nb6 {[%clk 0:00:10]}
37... Kg7 {[%clk 0:00:44.5]} 38. Nc8 {[%clk 0:00:07.2]} 38... Rd7 {[%clk
0:00:39]} 39. Ra3 {[%clk 0:00:07.2]} 39... Nd4 {[%clk 0:00:37.7]} 40. Re3 {[%clk
0:00:05.7]} 40... Kf8 {[%clk 0:00:27.7]} 41. h4 {[%clk 0:00:03]} 41... Nf5
{[%clk 0:00:26.9]} 42. Rh3 {[%clk 0:00:01.6]} 42... Rc7 {[%clk 0:00:24.1]} 0-1

[Event "Early-Titled-Tuesday-Blitz-March-26-2024"]
[Site "Chess.com"]
[Date "2024.03.26"]
[Round "8"]
[White "frederiksvane"]
[Black "Polish_fighter3000"]
[Result "0-1"]
[WhiteElo "2986"]
[BlackElo "3120"]
[TimeControl "180+1"]
[EndTime "9:25:17 PDT"]
[Termination "Polish_fighter3000 won by checkmate"]

1. e4 {[%clk 0:03:00.9]} 1... e5 {[%clk 0:02:56.4]} 2. Nf3 {[%clk 0:03:01.1]}
2... Nc6 {[%clk 0:02:57]} 3. Bb5 {[%clk 0:03:01.1]} 3... Nf6 {[%clk 0:02:53.2]}
4. O-O {[%clk 0:02:58.5]} 4... d6 {[%clk 0:02:51.6]} 5. Re1 {[%clk 0:02:55.3]}
5... Bd7 {[%clk 0:02:47.3]} 6. c3 {[%clk 0:02:53.4]} 6... a6 {[%clk 0:02:45.1]}
7. Bc4 {[%clk 0:02:25.8]} 7... Be7 {[%clk 0:01:54.9]} 8. d4 {[%clk 0:02:25.9]}
8... O-O {[%clk 0:01:54.9]} 9. d5 {[%clk 0:02:23.9]} 9... Nb8 {[%clk 0:01:52.7]}
10. Bd3 {[%clk 0:02:24.5]} 10... Bg4 {[%clk 0:01:50.5]} 11. h3 {[%clk
0:02:17.7]} 11... Bxf3 {[%clk 0:01:43.4]} 12. Qxf3 {[%clk 0:02:18.6]} 12... Nfd7
{[%clk 0:01:43.5]} 13. c4 {[%clk 0:02:18.3]} 13... Bg5 {[%clk 0:01:40.5]} 14.
Nc3 {[%clk 0:02:18.3]} 14... a5 {[%clk 0:01:40]} 15. b3 {[%clk 0:02:16.2]} 15...
Bxc1 {[%clk 0:01:34.6]} 16. Rexc1 {[%clk 0:02:10.9]} 16... Na6 {[%clk
0:01:35.5]} 17. a3 {[%clk 0:02:10.4]} 17... g6 {[%clk 0:01:28.5]} 18. Rab1
{[%clk 0:02:07.7]} 18... Qg5 {[%clk 0:01:24.8]} 19. Qg4 {[%clk 0:02:01.4]} 19...
Qxg4 {[%clk 0:01:05.5]} 20. hxg4 {[%clk 0:02:02.3]} 20... Kg7 {[%clk 0:00:54.9]}
21. g3 {[%clk 0:02:01.8]} 21... Rh8 {[%clk 0:00:53.1]} 22. Be2 {[%clk
0:01:59.4]} 22... Nf6 {[%clk 0:00:39.6]} 23. g5 {[%clk 0:01:43.9]} 23... Nd7
{[%clk 0:00:38.6]} 24. Kg2 {[%clk 0:01:44.3]} 24... h6 {[%clk 0:00:34.8]} 25.
gxh6+ {[%clk 0:01:31.6]} 25... Rxh6 {[%clk 0:00:35.7]} 26. b4 {[%clk 0:01:32.3]}
26... axb4 {[%clk 0:00:34.4]} 27. axb4 {[%clk 0:01:33.2]} 27... Rah8 {[%clk
0:00:31.1]} 28. Kf3 {[%clk 0:01:18.4]} 28... f5 {[%clk 0:00:22.9]} 29. exf5
{[%clk 0:00:59.1]} 29... gxf5 {[%clk 0:00:23.8]} 30. c5 {[%clk 0:00:50.6]} 30...
dxc5 {[%clk 0:00:21.5]} 31. Bxa6 {[%clk 0:00:50.6]} 31... Rxa6 {[%clk
0:00:08.2]} 32. bxc5 {[%clk 0:00:42.5]} 32... Nxc5 {[%clk 0:00:09.1]} 33. Nb5
{[%clk 0:00:42.8]} 33... b6 {[%clk 0:00:05.9]} 34. Nxc7 {[%clk 0:00:42.7]} 34...
Ra3+ {[%clk 0:00:02.7]} 35. Kg2 {[%clk 0:00:43.1]} 35... Nd3 {[%clk 0:00:01.7]}
36. Ne6+ {[%clk 0:00:35.7]} 36... Kf6 {[%clk 0:00:01.7]} 37. Rc6 {[%clk
0:00:35.5]} 37... e4 {[%clk 0:00:01.9]} 38. Nf4+ {[%clk 0:00:24]} 38... Ke5
{[%clk 0:00:02.5]} 39. Ng6+ {[%clk 0:00:24.5]} 39... Kxd5 {[%clk 0:00:03.2]} 40.
Rbxb6 {[%clk 0:00:15.5]} 40... Ne1+ {[%clk 0:00:03]} 41. Kf1 {[%clk 0:00:12.3]}
41... Rh1+ {[%clk 0:00:03.2]} 42. Ke2 {[%clk 0:00:13.1]} 42... Ra2+ {[%clk
0:00:03.7]} 43. Ke3 {[%clk 0:00:13.4]} 43... Ng2# {[%clk 0:00:04.2]} 0-1

[Event "Early-Titled-Tuesday-Blitz-March-26-2024"]
[Site "Chess.com"]
[Date "2024.03.26"]
[Round "8"]
[White "JimDiGrease"]
[Black "wqws"]
[Result "1-0"]
[WhiteElo "2946"]
[BlackElo "2732"]
[TimeControl "180+1"]
[EndTime "9:25:19 PDT"]
[Termination "JimDiGrease won by resignation"]

1. d4 {[%clk 0:03:00.9]} 1... Nf6 {[%clk 0:02:57.1]} 2. c4 {[%clk 0:03:01]} 2...
g6 {[%clk 0:02:57.5]} 3. Nc3 {[%clk 0:03:00.9]} 3... Bg7 {[%clk 0:02:57.9]} 4.
e4 {[%clk 0:03:01.6]} 4... d6 {[%clk 0:02:58.4]} 5. Nf3 {[%clk 0:03:02.3]} 5...
O-O {[%clk 0:02:59]} 6. Be2 {[%clk 0:03:03]} 6... e5 {[%clk 0:02:59.5]} 7. O-O
{[%clk 0:03:03.1]} 7... Nc6 {[%clk 0:03:00]} 8. Be3 {[%clk 0:03:03.7]} 8... Ng4
{[%clk 0:02:58.4]} 9. Bg5 {[%clk 0:03:03.6]} 9... f6 {[%clk 0:02:58.9]} 10. Bc1
{[%clk 0:03:04.3]} 10... f5 {[%clk 0:02:58.9]} 11. Bg5 {[%clk 0:03:03.6]} 11...
Bf6 {[%clk 0:02:56.8]} 12. Bxf6 {[%clk 0:03:03.4]} 12... Qxf6 {[%clk 0:02:56.1]}
13. d5 {[%clk 0:03:00.4]} 13... Ne7 {[%clk 0:02:47.1]} 14. exf5 {[%clk
0:02:56.4]} 14... gxf5 {[%clk 0:02:38.7]} 15. Ne1 {[%clk 0:02:55.9]} 15... Kh8
{[%clk 0:02:37]} 16. Bxg4 {[%clk 0:02:36.7]} 16... fxg4 {[%clk 0:02:36.9]} 17.
Nd3 {[%clk 0:02:34.1]} 17... Bf5 {[%clk 0:02:32.8]} 18. Qe2 {[%clk 0:02:28.6]}
18... Ng6 {[%clk 0:02:31.5]} 19. f3 {[%clk 0:01:57.6]} 19... g3 {[%clk
0:02:22.8]} 20. hxg3 {[%clk 0:01:49.6]} 20... Qg5 {[%clk 0:02:21.7]} 21. g4
{[%clk 0:01:39.3]} 21... Bxd3 {[%clk 0:02:20]} 22. Qxd3 {[%clk 0:01:40.2]} 22...
h5 {[%clk 0:02:10.9]} 23. Ne4 {[%clk 0:01:37.6]} 23... Qe7 {[%clk 0:02:07.3]}
24. g3 {[%clk 0:01:15.7]} 24... h4 {[%clk 0:02:05.2]} 25. Qe3 {[%clk 0:01:14.1]}
25... hxg3 {[%clk 0:01:59]} 26. Qh6+ {[%clk 0:01:04]} 26... Qh7 {[%clk
0:01:58.6]} 27. Qxh7+ {[%clk 0:01:03.6]} 27... Kxh7 {[%clk 0:01:59.5]} 28. Kg2
{[%clk 0:01:03.7]} 28... Nf4+ {[%clk 0:01:55.1]} 29. Kxg3 {[%clk 0:01:03.7]}
29... Kg6 {[%clk 0:01:55.6]} 30. Rh1 {[%clk 0:00:55.8]} 30... Ne2+ {[%clk
0:01:29.5]} 31. Kf2 {[%clk 0:00:54.1]} 31... Nd4 {[%clk 0:01:29.5]} 32. Rh3
{[%clk 0:00:53.9]} 32... Rf4 {[%clk 0:01:29.6]} 33. Rah1 {[%clk 0:00:47.2]}
33... Raf8 {[%clk 0:01:29]} 34. Rh6+ {[%clk 0:00:34.3]} 34... Kf7 {[%clk
0:01:28.5]} 35. Ng5+ {[%clk 0:00:16.8]} 35... Ke8 {[%clk 0:01:24]} 36. Rh8
{[%clk 0:00:15.6]} 36... Nxf3 {[%clk 0:00:59.4]} 37. Rxf8+ {[%clk 0:00:13.7]}
37... Rxf8 {[%clk 0:00:58.7]} 38. Nxf3 {[%clk 0:00:09.9]} 38... e4 {[%clk
0:00:58.9]} 39. Rh3 {[%clk 0:00:10.2]} 39... exf3 {[%clk 0:00:59]} 40. Rxf3
{[%clk 0:00:11.1]} 40... Rh8 {[%clk 0:00:59.3]} 41. Kg3 {[%clk 0:00:08.1]} 41...
Rh1 {[%clk 0:00:59.3]} 42. g5 {[%clk 0:00:08.3]} 42... Rg1+ {[%clk 0:00:59.7]}
43. Kh4 {[%clk 0:00:08.5]} 43... Rg2 {[%clk 0:01:00]} 44. b3 {[%clk 0:00:06.2]}
44... Rxa2 {[%clk 0:00:59.5]} 45. g6 {[%clk 0:00:06.4]} 45... Rg2 {[%clk
0:00:56.2]} 46. Kh5 {[%clk 0:00:06.8]} 46... Ke7 {[%clk 0:00:53.6]} 47. Kh6
{[%clk 0:00:06.7]} 47... Rh2+ {[%clk 0:00:53.7]} 48. Kg7 {[%clk 0:00:07.1]}
48... c6 {[%clk 0:00:49.8]} 49. Rf7+ {[%clk 0:00:05.9]} 49... Ke8 {[%clk
0:00:49.3]} 50. Rxb7 {[%clk 0:00:06.8]} 50... cxd5 {[%clk 0:00:49]} 51. cxd5
{[%clk 0:00:07.7]} 51... Rd2 {[%clk 0:00:45.7]} 52. Kf6 {[%clk 0:00:07.7]} 52...
Rxd5 {[%clk 0:00:45]} 53. g7 {[%clk 0:00:07.7]} 1-0

[Event "Early-Titled-Tuesday-Blitz-March-26-2024"]
[Site "Chess.com"]
[Date "2024.03.26"]
[Round "8"]
[White "orkinyo12345"]
[Black "Dewarfd"]
[Result "1-0"]
[WhiteElo "2523"]
[BlackElo "2150"]
[TimeControl "180+1"]
[EndTime "9:25:19 PDT"]
[Termination "orkinyo12345 won on time"]

1. d4 {[%clk 0:01:52.1]} 1... Nf6 {[%clk 0:02:57.8]} 2. Nf3 {[%clk 0:01:50.8]}
2... g6 {[%clk 0:02:57.5]} 3. g3 {[%clk 0:01:50.7]} 3... Bg7 {[%clk 0:02:56.5]}
4. Bg2 {[%clk 0:01:51.6]} 4... O-O {[%clk 0:02:55.8]} 5. O-O {[%clk 0:01:32.2]}
5... d5 {[%clk 0:02:54.9]} 6. c4 {[%clk 0:01:31.7]} 6... dxc4 {[%clk 0:02:53.9]}
7. a4 {[%clk 0:01:27.5]} 7... c5 {[%clk 0:02:52.9]} 8. Na3 {[%clk 0:01:25.4]}
8... c3 {[%clk 0:02:31.2]} 9. bxc3 {[%clk 0:01:19.6]} 9... cxd4 {[%clk
0:02:31.5]} 10. Nxd4 {[%clk 0:01:20.5]} 10... a6 {[%clk 0:02:20.3]} 11. Rb1
{[%clk 0:01:19.7]} 11... Qc7 {[%clk 0:02:18.2]} 12. Qb3 {[%clk 0:00:57.1]} 12...
Nc6 {[%clk 0:02:10.8]} 13. Nxc6 {[%clk 0:00:55.1]} 13... bxc6 {[%clk 0:02:11.7]}
14. Bf4 {[%clk 0:00:55.3]} 14... e5 {[%clk 0:02:10.7]} 15. Bg5 {[%clk
0:00:44.7]} 15... Bf5 {[%clk 0:02:09.9]} 16. Qb6 {[%clk 0:00:19.2]} 16... Qe7
{[%clk 0:01:41.3]} 17. Rb3 {[%clk 0:00:18.5]} 17... h6 {[%clk 0:01:31.3]} 18.
Bxf6 {[%clk 0:00:18.6]} 18... Bxf6 {[%clk 0:01:30.7]} 19. Qxc6 {[%clk 0:00:19]}
19... Be6 {[%clk 0:01:12.2]} 20. c4 {[%clk 0:00:16.4]} 20... Rac8 {[%clk
0:01:11]} 21. Qxa6 {[%clk 0:00:15.9]} 21... Rfd8 {[%clk 0:00:52.4]} 22. Bd5
{[%clk 0:00:15.2]} 22... Rd6 {[%clk 0:00:45]} 23. Qb5 {[%clk 0:00:11.6]} 23...
Rcd8 {[%clk 0:00:21.7]} 24. Rd1 {[%clk 0:00:09.9]} 24... Qd7 {[%clk 0:00:16.6]}
25. Qxd7 {[%clk 0:00:09.6]} 25... R6xd7 {[%clk 0:00:15.1]} 26. Rbd3 {[%clk
0:00:08.5]} 26... Bxd5 {[%clk 0:00:13.3]} 27. Rxd5 {[%clk 0:00:08.4]} 27... Rxd5
{[%clk 0:00:13.2]} 28. Rxd5 {[%clk 0:00:09.3]} 28... Ra8 {[%clk 0:00:12.9]} 29.
a5 {[%clk 0:00:09.8]} 29... Be7 {[%clk 0:00:12.6]} 30. Nc2 {[%clk 0:00:10.4]}
30... f6 {[%clk 0:00:11.6]} 31. e4 {[%clk 0:00:08.8]} 31... Kf7 {[%clk
0:00:11.9]} 32. Rb5 {[%clk 0:00:08.6]} 32... Ke6 {[%clk 0:00:11.9]} 33. Ne3
{[%clk 0:00:09.2]} 33... f5 {[%clk 0:00:10.4]} 34. f3 {[%clk 0:00:08.5]} 34...
Rd8 {[%clk 0:00:07.5]} 35. Nd5 {[%clk 0:00:08.8]} 35... Bd6 {[%clk 0:00:06]} 36.
a6 {[%clk 0:00:08.7]} 36... Ra8 {[%clk 0:00:05.7]} 37. Rb6 {[%clk 0:00:08.5]}
37... Kd7 {[%clk 0:00:05.5]} 38. Kf1 {[%clk 0:00:08.7]} 38... Bc5 {[%clk
0:00:05.3]} 39. Rxg6 {[%clk 0:00:08.4]} 39... Bd6 {[%clk 0:00:04.3]} 40. Nb6+
{[%clk 0:00:07.5]} 1-0

[Event "Early-Titled-Tuesday-Blitz-March-26-2024"]
[Site "Chess.com"]
[Date "2024.03.26"]
[Round "8"]
[White "Stanbad1"]
[Black "superchess02"]
[Result "0-1"]
[WhiteElo "2654"]
[BlackElo "2858"]
[TimeControl "180+1"]
[EndTime "9:25:22 PDT"]
[Termination "superchess02 won by checkmate"]

1. d4 {[%clk 0:03:00.9]} 1... Nf6 {[%clk 0:03:00]} 2. Nc3 {[%clk 0:03:01.5]}
2... e6 {[%clk 0:03:00.7]} 3. e4 {[%clk 0:03:01.4]} 3... d5 {[%clk 0:03:00.2]}
4. Bg5 {[%clk 0:03:01.5]} 4... dxe4 {[%clk 0:02:57.3]} 5. Nxe4 {[%clk
0:03:01.5]} 5... Be7 {[%clk 0:02:57.4]} 6. Bxf6 {[%clk 0:03:01.8]} 6... Bxf6
{[%clk 0:02:58.3]} 7. Nf3 {[%clk 0:03:01.8]} 7... Bd7 {[%clk 0:02:56.5]} 8. c3
{[%clk 0:03:02.1]} 8... Bc6 {[%clk 0:02:56.9]} 9. Bd3 {[%clk 0:03:02.3]} 9...
Nd7 {[%clk 0:02:55.7]} 10. Qe2 {[%clk 0:03:02.3]} 10... Bxe4 {[%clk 0:02:52.3]}
11. Qxe4 {[%clk 0:02:59.1]} 11... c6 {[%clk 0:02:51.8]} 12. O-O-O {[%clk
0:02:58.8]} 12... Qb6 {[%clk 0:02:50.2]} 13. Kb1 {[%clk 0:02:58.7]} 13... O-O-O
{[%clk 0:02:49.6]} 14. Rhe1 {[%clk 0:02:58]} 14... h6 {[%clk 0:02:48.1]} 15. g4
{[%clk 0:02:54.5]} 15... Qc7 {[%clk 0:02:40.3]} 16. h4 {[%clk 0:02:46.4]} 16...
g5 {[%clk 0:02:39.9]} 17. h5 {[%clk 0:02:44.1]} 17... Nb6 {[%clk 0:02:37.3]} 18.
Bc2 {[%clk 0:02:36.3]} 18... Nd5 {[%clk 0:02:34.5]} 19. Bb3 {[%clk 0:02:36.1]}
19... Nf4 {[%clk 0:02:32.9]} 20. c4 {[%clk 0:02:28.7]} 20... Kb8 {[%clk
0:02:28.3]} 21. d5 {[%clk 0:02:24.6]} 21... cxd5 {[%clk 0:02:12.5]} 22. cxd5
{[%clk 0:02:23.3]} 22... exd5 {[%clk 0:02:13.2]} 23. Bxd5 {[%clk 0:02:18.7]}
23... Qb6 {[%clk 0:02:13.1]} 24. Ne5 {[%clk 0:01:44.9]} 24... Rhe8 {[%clk
0:02:03.6]} 25. Nd7+ {[%clk 0:01:43.9]} 25... Rxd7 {[%clk 0:02:02.5]} 26. Qxe8+
{[%clk 0:01:44.1]} 26... Rd8 {[%clk 0:02:02.9]} 27. Bb3 {[%clk 0:01:13.9]} 27...
Rxe8 {[%clk 0:01:52.1]} 28. Rxe8+ {[%clk 0:01:12.9]} 28... Kc7 {[%clk
0:01:52.8]} 29. Rf8 {[%clk 0:00:53.9]} 29... a5 {[%clk 0:01:04.3]} 30. Rc1+
{[%clk 0:00:31.8]} 30... Kd6 {[%clk 0:01:03.1]} 31. Rd1+ {[%clk 0:00:31.9]}
31... Ke5 {[%clk 0:00:46.6]} 32. Re1+ {[%clk 0:00:17]} 32... Kd4 {[%clk
0:00:16.5]} 33. Rxf7 {[%clk 0:00:16.8]} 33... a4 {[%clk 0:00:11.9]} 34. Rd7+
{[%clk 0:00:12.1]} 34... Kc5 {[%clk 0:00:11.2]} 35. Rc1+ {[%clk 0:00:08.9]}
35... Kb5 {[%clk 0:00:10.6]} 36. Bc4+ {[%clk 0:00:01.9]} 36... Ka5 {[%clk
0:00:10.9]} 37. b3 {[%clk 0:00:02.5]} 37... Qxf2 {[%clk 0:00:09.7]} 38. b4+
{[%clk 0:00:02.9]} 38... Kxb4 {[%clk 0:00:08.8]} 39. Rxb7+ {[%clk 0:00:03]}
39... Ka3 {[%clk 0:00:09.1]} 40. Bb5 {[%clk 0:00:01.4]} 40... Qb2# {[%clk
0:00:08.5]} 0-1

[Event "Early-Titled-Tuesday-Blitz-March-26-2024"]
[Site "Chess.com"]
[Date "2024.03.26"]
[Round "8"]
[White "KuzubovYuriy"]
[Black "Josetricks"]
[Result "1-0"]
[WhiteElo "2928"]
[BlackElo "2723"]
[TimeControl "180+1"]
[EndTime "9:25:24 PDT"]
[Termination "KuzubovYuriy won by resignation"]

1. d4 {[%clk 0:03:00.9]} 1... g6 {[%clk 0:03:00.9]} 2. c4 {[%clk 0:03:00]} 2...
Bg7 {[%clk 0:03:01.2]} 3. Nc3 {[%clk 0:03:00.6]} 3... d6 {[%clk 0:03:01.8]} 4.
e4 {[%clk 0:03:01]} 4... Nd7 {[%clk 0:03:02.5]} 5. Nge2 {[%clk 0:02:58.6]} 5...
e5 {[%clk 0:03:03]} 6. d5 {[%clk 0:02:53.9]} 6... a5 {[%clk 0:03:01.4]} 7. h4
{[%clk 0:02:46.2]} 7... h5 {[%clk 0:03:00.8]} 8. Bg5 {[%clk 0:02:45.8]} 8... f6
{[%clk 0:02:57.7]} 9. Bd2 {[%clk 0:02:34.4]} 9... Bh6 {[%clk 0:02:58.2]} 10. Ng3
{[%clk 0:02:23.4]} 10... Nc5 {[%clk 0:02:56.5]} 11. Be2 {[%clk 0:02:15.3]} 11...
Bd7 {[%clk 0:02:48.9]} 12. b3 {[%clk 0:02:10.2]} 12... Qe7 {[%clk 0:02:46.4]}
13. Rb1 {[%clk 0:01:57.9]} 13... Bf4 {[%clk 0:02:38.2]} 14. Qc1 {[%clk
0:01:51.7]} 14... Bxd2+ {[%clk 0:02:22.5]} 15. Qxd2 {[%clk 0:01:52.6]} 15... Nh6
{[%clk 0:02:19.7]} 16. Bd1 {[%clk 0:01:28]} 16... f5 {[%clk 0:02:12.2]} 17. Bc2
{[%clk 0:01:03.1]} 17... f4 {[%clk 0:02:10.9]} 18. Nf1 {[%clk 0:00:57.6]} 18...
f3 {[%clk 0:01:49.6]} 19. gxf3 {[%clk 0:00:54.2]} 19... O-O-O {[%clk 0:01:44.6]}
20. a3 {[%clk 0:00:50.3]} 20... Rdf8 {[%clk 0:01:44]} 21. b4 {[%clk 0:00:44.1]}
21... Na6 {[%clk 0:01:43.3]} 22. Bd1 {[%clk 0:00:39.5]} 22... Rf4 {[%clk
0:01:39.4]} 23. Be2 {[%clk 0:00:35.6]} 23... Rhf8 {[%clk 0:01:33.7]} 24. Qe3
{[%clk 0:00:18.9]} 24... Kb8 {[%clk 0:00:52.8]} 25. Nd2 {[%clk 0:00:18.2]} 25...
Bc8 {[%clk 0:00:42]} 26. c5 {[%clk 0:00:18.2]} 26... Rxh4 {[%clk 0:00:27.7]} 27.
Rxh4 {[%clk 0:00:17.2]} 27... Qxh4 {[%clk 0:00:28]} 28. Qxh6 {[%clk 0:00:17.3]}
28... Qh1+ {[%clk 0:00:27.6]} 29. Bf1 {[%clk 0:00:17.3]} 29... Rf4 {[%clk
0:00:23.9]} 30. cxd6 {[%clk 0:00:16.8]} 30... cxd6 {[%clk 0:00:21.5]} 31. Qxg6
{[%clk 0:00:17.2]} 31... Bh3 {[%clk 0:00:20.6]} 32. Qxd6+ {[%clk 0:00:17.1]}
32... Nc7 {[%clk 0:00:20.7]} 33. Qd8+ {[%clk 0:00:15.7]} 33... Ka7 {[%clk
0:00:18.4]} 34. Qxc7 {[%clk 0:00:15.8]} 34... Bxf1 {[%clk 0:00:12.8]} 35. Nxf1
{[%clk 0:00:15.6]} 35... Qxf3 {[%clk 0:00:13.4]} 36. Qc5+ {[%clk 0:00:13.7]}
36... Kb8 {[%clk 0:00:11.6]} 37. Qe3 {[%clk 0:00:13.4]} 37... Qg4 {[%clk
0:00:09.9]} 38. bxa5 {[%clk 0:00:13.4]} 38... Rf3 {[%clk 0:00:07.8]} 39. Qb6
{[%clk 0:00:13.4]} 39... Qd7 {[%clk 0:00:03.7]} 40. a6 {[%clk 0:00:12.4]} 40...
Rxc3 {[%clk 0:00:02.6]} 41. Qxb7+ {[%clk 0:00:12.6]} 41... Qxb7 {[%clk 0:00:03]}
42. Rxb7+ {[%clk 0:00:13.5]} 42... Ka8 {[%clk 0:00:03.5]} 43. Rh7 {[%clk
0:00:14.1]} 43... Rc1+ {[%clk 0:00:04]} 44. Ke2 {[%clk 0:00:14.3]} 44... Rc2+
{[%clk 0:00:04.5]} 45. Nd2 {[%clk 0:00:14.7]} 45... Ra2 {[%clk 0:00:02.5]} 46.
d6 {[%clk 0:00:15.1]} 1-0